fUSD/lending_fUSD_20240301
["ID","MTS","AMOUNT","RATE_DAILY","PERIOD"]
[316005397,1709323848166,-500.0,0.00022027,2]
[316005398,1709323848176,-500.0,0.00022027,2]
[316005399,1709323848185,-500.0,0.00022027,2]
[316005400,1709323848194,-538.47098507,0.00022027,2]
[316005401,1709323848204,-500.0,0.00022027,2]
[316005402,1709323848213,-500.0,0.00022027,2]
[316005403,1709323848223,-500.0,0.00022027,2]
[316005404,1709323848233,-500.0,0.00022027,2]
[316005405,1709323848242,-500.0,0.00022027,2]
[316005406,1709323848251,-500.0,0.00022027,2]
[316005407,1709323848260,-500.0,0.00022027,2]
[316005408,1709323848269,-500.0,0.00022027,2]
[316005409,1709323848278,-500.0,0.00022027,2]
[316005410,1709323848287,-500.0,0.00022027,2]
[316005411,1709323848296,-500.0,0.00022027,2]
[316005412,1709323848305,-358.61763436,0.00022027,2]
[316005413,1709323848315,-500.0,0.00022027,2]
[316005414,1709323848324,-151.0,0.00022027,2]
[316005415,1709323848333,-500.0,0.00022027,2]
[316005416,1709323848343,-500.0,0.00022027,2]
[316005417,1709323848355,-500.0,0.00022027,2]
[316005418,1709323848365,-500.0,0.00022027,2]
[316005419,1709323848375,-500.0,0.00022027,2]
[316005420,1709323848384,-500.0,0.00022027,2]
[316005421,1709323848394,-500.0,0.00022027,2]
[316005422,1709323848403,-500.0,0.00022027,2]
[316005423,1709323848414,-500.0,0.00022027,2]
[316005424,1709323848423,-608.57,0.00022027,2]
[316005425,1709323848433,-500.0,0.00022027,2]
[316005426,1709323848444,-500.0,0.00022027,2]
[316005427,1709323848454,-500.0,0.00022027,2]
[316005428,1709323848465,-500.0,0.00022027,2]
[316005429,1709323848475,-500.0,0.00022027,2]
[316005430,1709323848484,-500.0,0.00022027,2]
[316005431,1709323848494,-500.0,0.00022027,2]
[316005432,1709323848503,-500.0,0.00022027,2]
[316005433,1709323848512,-500.0,0.00022027,2]
[316005434,1709323848522,-500.0,0.00022027,2]
[316005435,1709323848531,-500.0,0.00022027,2]
[316005436,1709323848541,-500.0,0.00022027,2]
[316005437,1709323848551,-500.0,0.00022027,2]
[316005438,1709323848560,-500.0,0.00022027,2]
[316005439,1709323848571,-500.0,0.00022027,2]
[316005440,1709323848580,-500.0,0.00022027,2]
[316005441,1709323848590,-500.0,0.00022027,2]
[316005442,1709323848604,-500.0,0.00022027,2]
[316005443,1709323848613,-500.0,0.00022027,2]
[316005444,1709323848623,-546.28,0.00022027,2]
[316005445,1709323848634,-500.0,0.00022027,2]
[316005446,1709323848644,-500.0,0.00022027,2]
[316005447,1709323848653,-500.0,0.00022027,2]
[316005448,1709323848662,-500.0,0.00022027,2]
[316005449,1709323848671,-500.0,0.00022027,2]
[316005450,1709323848681,-500.0,0.00022027,2]
[316005451,1709323848691,-707.16,0.00022027,2]
[316005452,1709323848701,-500.0,0.00022027,2]
[316005453,1709323848711,-638.44757775,0.00022027,2]
[316005454,1709323848720,-500.0,0.00022027,2]
[316005455,1709323848730,-500.0,0.00022027,2]
[316005456,1709323848740,-364.94560689,0.00022027,2]
[316005457,1709323848750,-500.0,0.00022027,2]
[316005458,1709323848759,-520.64,0.00022027,2]
[316005459,1709323848769,-500.0,0.00022027,2]
[316005460,1709323848779,-633.82,0.00022027,2]
[316005461,1709323848788,-500.0,0.00022027,2]
[316005462,1709323848798,-500.0,0.00022027,2]
[316005463,1709323848807,-500.0,0.00022027,2]
[316005464,1709323848817,-537.54201499,0.00022027,2]
[316005465,1709323848827,-500.0,0.00022027,2]
[316005466,1709323848836,-500.0,0.00022027,2]
[316005467,1709323848845,-500.0,0.00022027,2]
[316005468,1709323848856,-500.0,0.00022027,2]
[316005469,1709323848865,-568.46,0.00022027,2]
[316005470,1709323848875,-500.0,0.00022027,2]
[316005471,1709323848884,-933.14,0.00022027,2]
[316005472,1709323848893,-184.281957,0.00022027,2]
[316005473,1709323848903,-500.0,0.00022027,2]
[316005474,1709323848913,-500.0,0.00022027,2]
[316005475,1709323848921,-500.0,0.00022027,2]
[316005476,1709323848931,-500.0,0.00022027,2]
[316005477,1709323848941,-500.0,0.00022027,2]
[316005478,1709323848951,-500.0,0.00022027,2]
[316005479,1709323848961,-150.0,0.00022027,2]
[316005480,1709323848970,-500.0,0.00022027,2]
[316005481,1709323848980,-500.0,0.00022027,2]
[316005482,1709323848989,-500.0,0.00022027,2]
[316005483,1709323848999,-500.0,0.00022027,2]
[316005484,1709323849008,-500.0,0.00022027,2]
[316005485,1709323849018,-1792.9,0.00022027,2]
[316005486,1709323849028,-500.0,0.00022027,2]
[316005487,1709323849037,-500.0,0.00022027,2]
[316005488,1709323849047,-500.0,0.00022027,2]
[316005489,1709323849056,-500.0,0.00022027,2]
[316005490,1709323849066,-266.26,0.00022027,2]
[316005491,1709323849076,-267.95843296,0.00022027,2]
[316005492,1709323849085,-500.0,0.00022027,2]
[316005493,1709323849095,-500.0,0.00022027,2]
[316005494,1709323849105,-500.0,0.00022027,2]
[316005495,1709323849116,-500.0,0.00022027,2]
[316005496,1709323849126,-500.0,0.00022027,2]
[316005497,1709323849135,-500.0,0.00022027,2]
[316005498,1709323849146,-500.0,0.00022027,2]
[316005499,1709323849155,-500.0,0.00022027,2]
[316005500,1709323849165,-500.0,0.00022027,2]
[316005501,1709323849175,-500.0,0.00022027,2]
[316005502,1709323849185,-500.0,0.00022027,2]
[316005503,1709323849195,-500.0,0.00022027,2]
[316005504,1709323849204,-500.0,0.00022027,2]
[316005505,1709323849214,-500.0,0.00022027,2]
[316005506,1709323849223,-500.0,0.00022027,2]
[316005507,1709323849233,-501.72978618,0.00022027,2]
[316005508,1709323849243,-500.0,0.00022027,2]
[316005509,1709323849253,-896.99,0.00022027,2]
[316005510,1709323849262,-500.0,0.00022027,2]
[316005511,1709323849271,-500.0,0.00022027,2]
[316005512,1709323849280,-504.62640519,0.00022027,2]
[316005513,1709323849289,-500.0,0.00022027,2]
[316005514,1709323849298,-525.07,0.00022027,2]
[316005515,1709323849308,-833.33,0.00022027,2]
[316005516,1709323849317,-500.0,0.00022027,2]
[316005517,1709323849326,-500.0,0.00022027,2]
[316005518,1709323849335,-500.0,0.00022027,2]
[316005519,1709323849344,-500.0,0.00022027,2]
[316005520,1709323849354,-500.0,0.00022027,2]
[316005521,1709323849363,-500.0,0.00022027,2]
[316005522,1709323849371,-500.0,0.00022027,2]
[316005523,1709323849381,-500.0,0.00022027,2]
[316005524,1709323849390,-500.0,0.00022027,2]
[316005525,1709323849399,-527.41339426,0.00022027,2]
[316005526,1709323849408,-500.0,0.00022027,2]
[316005527,1709323849417,-500.0,0.00022027,2]
[316005528,1709323849425,-624.2,0.00022027,2]
[316005529,1709323849434,-500.0,0.00022027,2]
[316005530,1709323849444,-500.0,0.00022027,2]
[316005531,1709323849455,-500.0,0.00022027,2]
[316005532,1709323849464,-613.73,0.00022027,2]
[316005533,1709323849474,-500.0,0.00022027,2]
[316005534,1709323849484,-500.0,0.00022027,2]
[316005535,1709323849493,-500.0,0.00022027,2]
[316005536,1709323849502,-500.0,0.00022027,2]
[316005537,1709323849511,-500.0,0.00022027,2]
[316005538,1709323849520,-938.01,0.00022027,2]
[316005539,1709323849529,-697.58,0.00022027,2]
[316005540,1709323849539,-500.0,0.00022027,2]
[316005541,1709323849548,-238.866837,0.00022027,2]
[316005542,1709323849557,-500.0,0.00022027,2]
[316005543,1709323849566,-238.866837,0.00022027,2]
[316005544,1709323849575,-500.0,0.00022027,2]
[316005545,1709323849584,-500.0,0.00022027,2]
[316005546,1709323849594,-1373.75,0.00022027,2]
[316005547,1709323849604,-500.0,0.00022027,2]
[316005548,1709323849613,-500.0,0.00022027,2]
[316005549,1709323849625,-500.0,0.00022027,2]
[316005550,1709323849635,-500.0,0.00022027,2]
[316005551,1709323849644,-500.0,0.00022027,2]
[316005552,1709323849653,-500.0,0.00022027,2]
[316005553,1709323849662,-530.86,0.00022027,2]
[316005554,1709323849673,-500.0,0.00022027,2]
[316005555,1709323849682,-201.80940182,0.00022027,2]
[316005556,1709323849693,-500.0,0.00022027,2]
[316005557,1709323849849,-500.0,0.00022027,2]
[316005558,1709323849860,-500.0,0.00022027,2]
[316005559,1709323849870,-500.0,0.00022027,2]
[316005560,1709323849880,-1192.49,0.00022027,2]
[316005561,1709323849889,-500.0,0.00022027,2]
[316005562,1709323849899,-500.0,0.00022027,2]
[316005563,1709323849908,-2601.97,0.00022027,2]
[316005564,1709323849917,-500.0,0.00022027,2]
[316005565,1709323849926,-500.0,0.00022027,2]
[316005566,1709323849936,-530.62,0.00022027,2]
[316005567,1709323849945,-500.0,0.00022027,2]
[316005568,1709323849955,-1930.6,0.00022027,2]
[316005569,1709323849965,-500.0,0.00022027,2]
[316005570,1709323849975,-500.0,0.00022027,2]
[316005571,1709323849984,-500.0,0.00022027,2]
[316005572,1709323849993,-755.31,0.00022027,2]
[316005573,1709323850002,-2139.32,0.00022027,2]
[316005574,1709323850011,-500.0,0.00022027,2]
[316005575,1709323850020,-500.0,0.00022027,2]
[316005576,1709323850029,-1171.44,0.00022027,2]
[316005577,1709323850038,-2357.47,0.00022027,2]
[316005578,1709323850047,-500.0,0.00022027,2]
[316005579,1709323850057,-500.0,0.00022027,2]
[316005580,1709323850065,-500.0,0.00022027,2]
[316005581,1709323850075,-500.0,0.00022027,2]
[316005582,1709323850083,-500.0,0.00022027,2]
[316005583,1709323850092,-500.0,0.00022027,2]
[316005584,1709323850102,-1358.91,0.00022027,2]
[316005585,1709323850110,-1472.76,0.00022027,2]
[316005586,1709323850120,-1024.85,0.00022027,2]
[316005587,1709323850129,-617.61838395,0.00022027,2]
[316005588,1709323850139,-500.0,0.00022027,2]
[316005589,1709323850148,-500.0,0.00022027,2]
[316005590,1709323850159,-500.0,0.00022027,2]
[316005591,1709323850169,-500.0,0.00022027,2]
[316005592,1709323850179,-542.67293535,0.00022027,2]
[316005593,1709323850189,-587.18,0.00022027,2]
[316005594,1709323850200,-500.0,0.00022027,2]
[316005595,1709323850211,-5140.66,0.00022027,2]
[316005596,1709323850226,-500.0,0.00022027,2]
[316005597,1709323850237,-500.0,0.00022027,2]
[316005598,1709323850248,-772.83,0.00022027,2]
[316005599,1709323850259,-715.68,0.00022027,2]
[316005600,1709323850270,-500.0,0.00022027,2]
[316005601,1709323850281,-151.0,0.00022027,7]
[316005602,1709323850292,-500.0,0.00022027,2]
[316005603,1709323850303,-500.0,0.00022027,2]
[316005604,1709323850314,-500.0,0.00022027,2]
[316005605,1709323850325,-1502.89,0.00022027,2]
[316005606,1709323850336,-19950.18,0.00022027,2]
[316005607,1709323850349,-500.0,0.00022027,2]
[316005608,1709323850361,-1700.71,0.00022027,2]
[316005609,1709323850372,-500.0,0.00022027,2]
[316005610,1709323850384,-635.80785055,0.00022027,2]
[316005611,1709323850395,-151.0,0.00022027,7]
[316005612,1709323850406,-522.76,0.00022027,2]
[316005613,1709323850417,-500.0,0.00022027,2]
[316005614,1709323850428,-500.0,0.00022027,2]
[316005615,1709323850439,-2645.67,0.00022027,2]
[316005616,1709323850450,-500.0,0.00022027,2]
[316005617,1709323850461,-1471.09,0.00022027,2]
[316005618,1709323850471,-663.65,0.00022027,2]
[316005619,1709323850481,-1610.96,0.00022027,2]
[316005620,1709323850492,-500.0,0.00022027,2]
[316005621,1709323850503,-500.0,0.00022027,2]
[316005622,1709323850513,-500.0,0.00022027,2]
[316005623,1709323850525,-528.88344078,0.00022027,2]
[316005624,1709323850536,-500.0,0.00022027,2]
[316005625,1709323850546,-500.0,0.00022027,2]
[316005626,1709323850556,-500.0,0.00022027,2]
[316005627,1709323850565,-510.83338709,0.00022027,2]
[316005628,1709323850575,-501.45,0.00022027,2]
[316005629,1709323850585,-500.0,0.00022027,2]
[316005630,1709323850596,-1625.57,0.00022027,2]
[316005631,1709323850607,-500.0,0.00022027,2]
[316005632,1709323850617,-21083.25,0.00022027,2]
[316005633,1709323850626,-500.0,0.00022027,2]
[316005634,1709323850637,-868.78,0.00022027,2]
[316005635,1709323850647,-812.97,0.00022027,2]
[316005636,1709323850657,-500.0,0.00022027,2]
[316005637,1709323850667,-909.41,0.00022027,2]
[316005638,1709323850677,-500.0,0.00022027,2]
[316005639,1709323850687,-500.0,0.00022027,2]
[316005640,1709323850696,-1021.4,0.00022027,2]
[316005641,1709323850705,-500.0,0.00022027,2]
[316005642,1709323850715,-500.0,0.00022027,2]
[316005643,1709323850725,-1297.81,0.00022027,2]
[316005644,1709323850734,-1070.78,0.00022027,2]
[316005645,1709323850743,-500.0,0.00022027,2]
[316005646,1709323850752,-500.0,0.00022027,2]
[316005647,1709323850761,-500.0,0.00022027,2]
[316005648,1709323850771,-697.28,0.00022027,2]
[316005649,1709323850781,-1107.62,0.00022027,2]
[316005650,1709323850790,-968.03,0.00022027,2]
[316005651,1709323850799,-500.0,0.00022027,2]
[316005652,1709323850808,-500.0,0.00022027,2]
[316005653,1709323850817,-729.02,0.00022027,2]
[316005654,1709323850827,-151.0,0.00022027,7]
[316005655,1709323850836,-500.0,0.00022027,2]
[316005656,1709323850845,-587.56,0.00022027,2]
[316005657,1709323850856,-1016.74,0.00022027,2]
[316005658,1709323850865,-500.0,0.00022027,2]
[316005659,1709323850874,-500.0,0.00022027,2]
[316005660,1709323850883,-500.0,0.00022027,2]
[316005661,1709323850893,-500.0,0.00022027,2]
[316005662,1709323850902,-500.0,0.00022027,2]
[316005663,1709323850911,-3704.81,0.00022027,2]
[316005664,1709323850921,-556.99,0.00022027,2]
[316005665,1709323850930,-500.0,0.00022027,2]
[316005666,1709323850940,-500.0,0.00022027,2]
[316005667,1709323850950,-505.67605877,0.00022027,2]
[316005668,1709323850958,-500.0,0.00022027,2]
[316005669,1709323850968,-628.25,0.00022027,2]
[316005670,1709323850977,-500.0,0.00022027,2]
[316005671,1709323850986,-500.0,0.00022027,2]
[316005672,1709323850995,-500.0,0.00022027,2]
[316005673,1709323851004,-500.0,0.00022027,2]
[316005674,1709323851013,-890.19,0.00022027,2]
[316005675,1709323851022,-4053.77,0.00022027,2]
[316005676,1709323851031,-500.0,0.00022027,2]
[316005677,1709323851040,-715.9,0.00022027,2]
[316005678,1709323851049,-820.3,0.00022027,2]
[316005679,1709323851059,-766.04,0.00022027,2]
[316005680,1709323851068,-2754.16,0.00022027,2]
[316005681,1709323851077,-604.43,0.00022027,2]
[316005682,1709323851086,-500.0,0.00022027,2]
[316005683,1709323851095,-2812.76,0.00022027,2]
[316005684,1709323851105,-1363.48,0.00022027,2]
[316005685,1709323851115,-500.0,0.00022027,2]
[316005686,1709323851125,-1022.61,0.00022027,2]
[316005687,1709323851135,-500.0,0.00022027,2]
[316005688,1709323851144,-2010.22,0.00022027,2]
[316005689,1709323851154,-500.0,0.00022027,2]
[316005690,1709323851163,-525.9413684,0.00022027,2]
[316005691,1709323851172,-500.0,0.00022027,2]
[316005692,1709323851182,-500.0,0.00022027,2]
[316005693,1709323851192,-670.14,0.00022027,2]
[316005694,1709323851201,-1149.0,0.00022027,2]
[316005695,1709323851211,-500.0,0.00022027,2]
[316005696,1709323851220,-195.28213,0.00022027,7]
[316005697,1709323851230,-1294.41,0.00022027,2]
[316005698,1709323851239,-500.0,0.00022027,2]
[316005699,1709323851248,-500.0,0.00022027,2]
[316005700,1709323851258,-195.28213,0.00022027,7]
[316005701,1709323851268,-500.0,0.00022027,2]
[316005702,1709323851278,-576.51,0.00022027,2]
[316005703,1709323851288,-1039.93,0.00022027,2]
[316005704,1709323851297,-500.0,0.00022027,2]
[316005705,1709323851307,-500.0,0.00022027,2]
[316005706,1709323851316,-506.0155911,0.00022027,2]
[316005707,1709323851326,-584.12925787,0.00022027,2]
[316005708,1709323851335,-2594.33,0.00022027,2]
[316005709,1709323851345,-552.75,0.00022027,2]
[316005710,1709323851356,-783.02,0.00022027,2]
[316005711,1709323851367,-2678.0,0.00022027,2]
[316005712,1709323851376,-500.0,0.00022027,2]
[316005713,1709323851386,-500.0,0.00022027,2]
[316005714,1709323851396,-151.0,0.00022027,7]
[316005715,1709323851408,-500.0,0.00022027,2]
[316005716,1709323851418,-500.0,0.00022027,2]
[316005717,1709323851428,-500.0,0.00022027,2]
[316005718,1709323851437,-1463.8,0.00022027,2]
[316005719,1709323851448,-500.0,0.00022027,2]
[316005720,1709323851457,-562.42,0.00022027,2]
[316005721,1709323851467,-500.0,0.00022027,2]
[316005722,1709323851478,-435.16698792,0.00022027,2]
[316005723,1709323851488,-2022.06,0.00022027,2]
[316005724,1709323851497,-1183.11,0.00022027,2]
[316005725,1709323851506,-500.0,0.00022027,2]
[316005726,1709323851516,-1493.68,0.00022027,2]
[316005727,1709323851525,-500.0,0.00022027,2]
[316005728,1709323851535,-1027.3,0.00022027,2]
[316005729,1709323851544,-364.75028752,0.00022027,2]
[316005730,1709323851553,-500.0,0.00022027,2]
[316005731,1709323851563,-500.0,0.00022027,2]
[316005732,1709323851572,-500.0,0.00022027,2]
[316005733,1709323851582,-540.73821598,0.00022027,2]
[316005734,1709323851593,-151.0,0.00022027,7]
[316005735,1709323851605,-773.9,0.00022027,2]
[316005736,1709323851615,-4687.31,0.00022027,2]
[316005737,1709323851625,-151.0,0.00022027,7]
[316005738,1709323851635,-1364.59,0.00022027,2]
[316005739,1709323851644,-229.010247,0.00022027,7]
[316005740,1709323851653,-500.0,0.00022027,2]
[316005741,1709323851663,-1579.17,0.00022027,2]
[316005742,1709323851675,-500.0,0.00022027,2]
[316005743,1709323851684,-500.0,0.00022027,2]
[316005744,1709323851694,-816.82,0.00022027,2]
[316005745,1709323851705,-500.0,0.00022027,2]
[316005746,1709323851714,-500.0,0.00022027,2]
[316005747,1709323851724,-500.0,0.00022027,2]
[316005748,1709323851734,-500.0,0.00022027,2]
[316005749,1709323851744,-1098.21,0.00022027,2]
[316005750,1709323851753,-500.0,0.00022027,2]
[316005751,1709323851763,-11191.25,0.00022027,2]
[316005752,1709323851772,-500.0,0.00022027,2]
[316005753,1709323851782,-500.0,0.00022027,2]
[316005754,1709323851792,-1330.17,0.00022027,2]
[316005755,1709323851801,-1009.32,0.00022027,2]
[316005756,1709323851811,-500.0,0.00022027,2]
[316005757,1709323851820,-1884.22,0.00022027,2]
[316005758,1709323851829,-500.0,0.00022027,2]
[316005759,1709323851838,-3725.77,0.00022027,2]
[316005760,1709323851848,-791.62,0.00022027,2]
[316005761,1709323851858,-500.0,0.00022027,2]
[316005762,1709323851867,-585.87112663,0.00022027,2]
[316005763,1709323851877,-500.0,0.00022027,2]
[316005764,1709323851887,-965.26,0.00022027,2]
[316005765,1709323851897,-500.0,0.00022027,2]
[316005766,1709323851906,-500.0,0.00022027,2]
[316005767,1709323851916,-500.0,0.00022027,2]
[316005768,1709323851928,-500.0,0.00022027,2]
[316005769,1709323851937,-500.0,0.00022027,2]
[316005770,1709323851947,-500.0,0.00022027,2]
[316005771,1709323851956,-538.11358014,0.00022027,2]
[316005772,1709323851966,-605.77,0.00022027,2]
[316005773,1709323851976,-2931.93,0.00022027,2]
[316005774,1709323851986,-646.09,0.00022027,2]
[316005775,1709323851995,-500.0,0.00022027,2]
[316005776,1709323852005,-500.0,0.00022027,2]
[316005777,1709323852015,-500.0,0.00022027,2]
[316005778,1709323852025,-500.0,0.00022027,2]
[316005779,1709323852036,-500.0,0.00022027,2]
[316005780,1709323852045,-500.0,0.00022027,2]
[316005781,1709323852056,-6411.54,0.00022027,2]
[316005782,1709323852066,-500.0,0.00022027,2]
[316005783,1709323852075,-500.0,0.00022027,2]
[316005784,1709323852085,-1805.15,0.00022027,2]
[316005785,1709323852094,-587.03,0.00022027,2]
[316005786,1709323852105,-849.86,0.00022027,2]
[316005787,1709323852115,-1498.84,0.00022027,2]
[316005788,1709323852125,-621.83,0.00022027,2]
[316005789,1709323852136,-500.0,0.00022027,2]
[316005790,1709323852145,-11542.81,0.00022027,2]
[316005791,1709323852155,-500.0,0.00022027,2]
[316005792,1709323852165,-660.97,0.00022027,2]
[316005793,1709323852174,-500.0,0.00022027,2]
[316005794,1709323852184,-525.42,0.00022027,2]
[316005795,1709323852194,-1220.78,0.00022027,2]
[316005796,1709323852204,-500.0,0.00022027,2]
[316005797,1709323852213,-5230.42,0.00022027,2]
[316005798,1709323852222,-928.56,0.00022027,2]
[316005799,1709323852232,-1567.33,0.00022027,2]
[316005800,1709323852241,-500.0,0.00022027,2]
[316005801,1709323852252,-6803.33,0.00022027,2]
[316005802,1709323852275,-1315.36,0.00022027,2]
[316005803,1709323852439,-500.0,0.00022027,2]
[316005804,1709323852450,-1098.94,0.00022027,2]
[316005805,1709323852460,-533.5616728,0.00022027,2]
[316005806,1709323852471,-500.0,0.00022027,2]
[316005807,1709323852480,-752.81,0.00022027,2]
[316005808,1709323852490,-500.0,0.00022027,2]
[316005809,1709323852500,-500.0,0.00022027,2]
[316005810,1709323852509,-1244.11,0.00022027,2]
[316005811,1709323852519,-1915.79,0.00022027,2]
[316005812,1709323852528,-1905.39,0.00022027,2]
[316005813,1709323852538,-500.0,0.00022027,2]
[316005814,1709323852547,-844.94,0.00022027,2]
[316005815,1709323852557,-1197.72,0.00022027,2]
[316005816,1709323852566,-500.0,0.00022027,2]
[316005817,1709323852576,-500.0,0.00022027,2]
[316005818,1709323852585,-516.86632856,0.00022027,2]
[316005819,1709323852597,-500.0,0.00022027,2]
[316005820,1709323852608,-500.0,0.00022027,2]
[316005821,1709323852618,-500.0,0.00022027,2]
[316005822,1709323852631,-9598.76,0.00022027,2]
[316005823,1709323852641,-500.0,0.00022027,2]
[316005824,1709323852652,-500.0,0.00022027,2]
[316005825,1709323852688,-5566.13,0.00022027,2]
[316005826,1709323852699,-151.0,0.00022027,7]
[316005827,1709323852710,-3238.46,0.00022027,2]
[316005828,1709323852720,-151.0,0.00022027,7]
[316005829,1709323852730,-500.0,0.00022027,2]
[316005830,1709323852739,-500.0,0.00022027,2]
[316005831,1709323852748,-151.0,0.00022027,7]
[316005832,1709323852758,-151.0,0.00022027,7]
[316005833,1709323852768,-625.01,0.00022027,2]
[316005834,1709323852778,-2107.74,0.00022027,2]
[316005835,1709323852788,-254.983766,0.00022027,7]
[316005836,1709323852798,-500.0,0.00022027,2]
[316005837,1709323852807,-752.31,0.00022027,2]
[316005838,1709323852817,-3096.5,0.00022027,2]
[316005839,1709323852826,-500.0,0.00022027,2]
[316005840,1709323852837,-500.0,0.00022027,2]
[316005841,1709323852846,-500.0,0.00022027,2]
[316005842,1709323852857,-1267.67,0.00022027,2]
[316005843,1709323852867,-1108.88,0.00022027,2]
[316005844,1709323852876,-1239.93,0.00022027,2]
[316005845,1709323852885,-500.0,0.00022027,2]
[316005846,1709323852895,-500.0,0.00022027,2]
[316005847,1709323852905,-2367.72,0.00022027,2]
[316005848,1709323852914,-500.0,0.00022027,2]
[316005849,1709323852923,-500.0,0.00022027,2]
[316005850,1709323852932,-1572.31,0.00022027,2]
[316005851,1709323852941,-500.0,0.00022027,2]
[316005852,1709323852951,-500.0,0.00022027,2]
[316005853,1709323852960,-851.32,0.00022027,2]
[316005854,1709323852970,-7933.58,0.00022027,2]
[316005855,1709323852979,-1340.26,0.00022027,2]
[316005856,1709323852988,-500.0,0.00022027,2]
[316005857,1709323852997,-500.0,0.00022027,2]
[316005858,1709323853005,-809.21,0.00022027,2]
[316005859,1709323853014,-815.73,0.00022027,2]
[316005860,1709323853023,-1131.25,0.00022027,2]
[316005861,1709323853032,-6260.63,0.00022027,2]
[316005862,1709323853041,-500.0,0.00022027,2]
[316005863,1709323853050,-500.0,0.00022027,2]
[316005864,1709323853059,-500.0,0.00022027,2]
[316005865,1709323853068,-743.1,0.00022027,2]
[316005866,1709323853077,-4121.89,0.00022027,2]
[316005867,1709323853086,-500.0,0.00022027,2]
[316005868,1709323853096,-2061.75,0.00022027,2]
[316005869,1709323853106,-708.56,0.00022027,2]
[316005870,1709323853115,-2921.2,0.00022027,2]
[316005871,1709323853125,-4170.86,0.00022027,2]
[316005872,1709323853134,-595.18,0.00022027,2]
[316005873,1709323853145,-11562.7,0.00022027,2]
[316005874,1709323853156,-500.0,0.00022027,2]
[316005875,1709323853165,-1585.35,0.00022027,2]
[316005876,1709323853174,-500.0,0.00022027,2]
[316005877,1709323853183,-2561.19,0.00022027,2]
[316005878,1709323853192,-500.0,0.00022027,2]
[316005879,1709323853207,-500.0,0.00022027,2]
[316005880,1709323853225,-500.0,0.00022027,2]
[316005881,1709323853234,-500.0,0.00022027,2]
[316005882,1709323853243,-503.0977776,0.00022027,2]
[316005883,1709323853254,-500.0,0.00022027,2]
[316005884,1709323853263,-500.0,0.00022027,2]
[316005885,1709323853272,-1970.12,0.00022027,2]
[316005886,1709323853282,-500.0,0.00022027,2]
[316005887,1709323853291,-163.023811,0.00022027,7]
[316005888,1709323853300,-5848.44,0.00022027,2]
[316005889,1709323853310,-554.99854016,0.00022027,2]
[316005890,1709323853319,-500.0,0.00022027,2]
[316005891,1709323853328,-1240.56,0.00022027,2]
[316005892,1709323853338,-2771.68,0.00022027,2]
[316005893,1709323853348,-500.0,0.00022027,2]
[316005894,1709323853359,-500.0,0.00022027,2]
[316005895,1709323853368,-785.79,0.00022027,2]
[316005896,1709323853378,-500.0,0.00022027,2]